[Event "*** Titled Tuesday 3|2 Blitz"]
[Site "Chess.com"]
[Date "2015.08.04"]
[Round "4"]
[White "GMG"]
[Black "ChadaevNikolay"]
[Result "1-0"]
[WhiteElo "2411"]
[BlackElo "2596"]
[TimeControl "180+2"]
[EndTime "12:21:55 PDT"]
[Termination "GMG won by resignation"]

1. Nf3 {[%clk 0:03:01.9]} 1... Nf6 {[%clk 0:02:59.3]} 2. d4 {[%clk 0:03:03.2]}
2... g6 {[%clk 0:03:00.5]} 3. Bf4 {[%clk 0:03:02.3]} 3... Bg7 {[%clk 0:03:01.3]}
4. e3 {[%clk 0:03:03.8]} 4... O-O {[%clk 0:03:02.6]} 5. h3 {[%clk 0:02:56.2]}
5... d6 {[%clk 0:03:03.4]} 6. Be2 {[%clk 0:02:53.8]} 6... Nc6 {[%clk 0:03:03.2]}
7. O-O {[%clk 0:02:53]} 7... Bf5 {[%clk 0:03:04]} 8. c4 {[%clk 0:02:50.2]} 8...
Ne4 {[%clk 0:03:01.2]} 9. Bh2 {[%clk 0:02:43.5]} 9... Re8 {[%clk 0:02:55.2]} 10.
Nbd2 {[%clk 0:02:37.9]} 10... e5 {[%clk 0:02:46.4]} 11. d5 {[%clk 0:02:31.8]}
11... Nxd2 {[%clk 0:02:43.2]} 12. Nxd2 {[%clk 0:02:30.8]} 12... Ne7 {[%clk
0:02:41.4]} 13. Bg4 {[%clk 0:02:18.1]} 13... e4 {[%clk 0:02:29.3]} 14. Rb1
{[%clk 0:02:12.1]} 14... h5 {[%clk 0:02:29.8]} 15. Be2 {[%clk 0:02:09.3]} 15...
a5 {[%clk 0:02:16.6]} 16. g4 {[%clk 0:02:06.9]} 16... hxg4 {[%clk 0:02:16.7]}
17. hxg4 {[%clk 0:02:08.8]} 17... Bd7 {[%clk 0:02:15.2]} 18. Nxe4 {[%clk
0:02:08.8]} 18... Nxd5 {[%clk 0:02:09.9]} 19. cxd5 {[%clk 0:01:47.9]} 19... Rxe4
{[%clk 0:02:09.5]} 20. Bf3 {[%clk 0:01:46.4]} 20... Re8 {[%clk 0:01:59.6]} 21.
Kg2 {[%clk 0:01:42.3]} 21... f5 {[%clk 0:01:57.7]} 22. Bf4 {[%clk 0:01:37.7]}
22... Qf6 {[%clk 0:01:53.2]} 23. g5 {[%clk 0:01:35.6]} 23... Qe7 {[%clk
0:01:45.9]} 24. Rh1 {[%clk 0:01:33.3]} 24... Ra6 {[%clk 0:01:46.3]} 25. b3
{[%clk 0:01:31.9]} 25... a4 {[%clk 0:01:33.6]} 26. b4 {[%clk 0:01:29.9]} 26...
Bb5 {[%clk 0:01:34.3]} 27. Rc1 {[%clk 0:01:28.4]} 27... Raa8 {[%clk 0:01:31.5]}
28. Qc2 {[%clk 0:01:20.1]} 28... Rac8 {[%clk 0:01:30.1]} 29. a3 {[%clk
0:01:09.9]} 29... Qf7 {[%clk 0:01:29.9]} 30. Qd2 {[%clk 0:01:08.4]} 30... Rcd8
{[%clk 0:01:23.3]} 31. Rh4 {[%clk 0:01:04.9]} 31... Rd7 {[%clk 0:01:23.9]} 32.
Rch1 {[%clk 0:01:05.4]} 32... Bc4 {[%clk 0:01:18.9]} 33. Qd1 {[%clk 0:00:57.4]}
33... b5 {[%clk 0:01:18.4]} 34. Kg3 {[%clk 0:00:56.7]} 34... Kf8 {[%clk
0:01:13.8]} 35. Rh7 {[%clk 0:00:53.1]} 35... Ke7 {[%clk 0:01:13.7]} 36. Be2
{[%clk 0:00:43]} 36... Kd8 {[%clk 0:00:57.6]} 37. Bxc4 {[%clk 0:00:42.9]} 37...
bxc4 {[%clk 0:00:58.8]} 38. Qxa4 {[%clk 0:00:43.5]} 38... Qxd5 {[%clk
0:00:59.7]} 39. Rd1 {[%clk 0:00:40.4]} 39... Qb7 {[%clk 0:00:48.9]} 40. f3
{[%clk 0:00:31.8]} 40... c3 {[%clk 0:00:47.1]} 41. b5 {[%clk 0:00:30.2]} 41...
Kc8 {[%clk 0:00:44.5]} 42. Qc4 {[%clk 0:00:27.5]} 42... Red8 {[%clk 0:00:41.9]}
43. a4 {[%clk 0:00:18.8]} 43... d5 {[%clk 0:00:41.1]} 44. Qd3 {[%clk 0:00:17.9]}
44... d4 {[%clk 0:00:40.7]} 45. Rxg7 {[%clk 0:00:15.7]} 45... Rxg7 {[%clk
0:00:40.9]} 46. exd4 {[%clk 0:00:17.3]} 46... Rh7 {[%clk 0:00:37.5]} 47. Qxc3
{[%clk 0:00:18]} 47... Rdh8 {[%clk 0:00:38.2]} 48. Kg2 {[%clk 0:00:19.6]} 48...
Rh4 {[%clk 0:00:36.9]} 49. Bg3 {[%clk 0:00:19.8]} 49... Rg4 {[%clk 0:00:38]} 50.
d5 {[%clk 0:00:20.8]} 50... Rxg5 {[%clk 0:00:38.1]} 51. Qxh8+ {[%clk 0:00:17.7]}
51... Kd7 {[%clk 0:00:38.7]} 52. Qg7+ {[%clk 0:00:18.7]} 52... Kc8 {[%clk
0:00:39.6]} 53. Qf8+ {[%clk 0:00:19.6]} 53... Kd7 {[%clk 0:00:41]} 54. Qf7+
{[%clk 0:00:20.2]} 54... Kc8 {[%clk 0:00:42.4]} 55. Qe6+ {[%clk 0:00:19.5]}
55... Kb8 {[%clk 0:00:43]} 56. Qe8+ {[%clk 0:00:17.6]} 56... Ka7 {[%clk
0:00:42.8]} 57. Qe3+ {[%clk 0:00:18.2]} 1-0

[Event "*** Titled Tuesday 3|2 Blitz"]
[Site "Chess.com"]
[Date "2015.08.04"]
[Round "4"]
[White "MinhGTrAn"]
[Black "ViktoriaGloriam"]
[Result "0-1"]
[WhiteElo "2477"]
[BlackElo "2185"]
[TimeControl "180+2"]
[EndTime "12:21:57 PDT"]
[Termination "ViktoriaGloriam won by resignation"]

1. b3 {[%clk 0:03:01.9]} 1... d5 {[%clk 0:02:58.3]} 2. Bb2 {[%clk 0:03:03.8]}
2... Nc6 {[%clk 0:02:59.9]} 3. Nf3 {[%clk 0:03:05.7]} 3... Nf6 {[%clk
0:02:59.4]} 4. e3 {[%clk 0:03:07.6]} 4... Bg4 {[%clk 0:02:59.8]} 5. Bb5 {[%clk
0:03:08.7]} 5... e6 {[%clk 0:02:54.9]} 6. h3 {[%clk 0:03:10.1]} 6... Bxf3 {[%clk
0:02:55.3]} 7. Qxf3 {[%clk 0:03:12]} 7... Bd6 {[%clk 0:02:56.8]} 8. O-O {[%clk
0:03:11.2]} 8... a6 {[%clk 0:02:54.3]} 9. Bxc6+ {[%clk 0:03:09.8]} 9... bxc6
{[%clk 0:02:56.2]} 10. d4 {[%clk 0:03:09.3]} 10... g5 {[%clk 0:02:50]} 11. Nd2
{[%clk 0:03:08.4]} 11... h5 {[%clk 0:02:47.5]} 12. e4 {[%clk 0:03:04.3]} 12...
Bf4 {[%clk 0:02:35.6]} 13. exd5 {[%clk 0:02:54.2]} 13... Qxd5 {[%clk 0:02:29.9]}
14. Rad1 {[%clk 0:02:50.3]} 14... Qxf3 {[%clk 0:01:44.7]} 15. Nxf3 {[%clk
0:02:52.2]} 15... g4 {[%clk 0:01:46.1]} 16. Nh4 {[%clk 0:02:28.8]} 16... Bg5
{[%clk 0:01:41.4]} 17. g3 {[%clk 0:02:27.3]} 17... Bxh4 {[%clk 0:01:38.6]} 18.
gxh4 {[%clk 0:02:28.6]} 18... Nd5 {[%clk 0:01:40.3]} 19. Kh2 {[%clk 0:02:23]}
19... O-O-O {[%clk 0:01:34.6]} 20. c4 {[%clk 0:01:55.7]} 20... Nf4 {[%clk
0:01:32.9]} 21. d5 {[%clk 0:01:56.1]} 21... Rhg8 {[%clk 0:01:30.5]} 22. dxc6
{[%clk 0:01:37.9]} 22... gxh3 {[%clk 0:01:16.7]} 23. Bf6 {[%clk 0:01:24.5]}
23... Rg2+ {[%clk 0:01:04.8]} 24. Kh1 {[%clk 0:01:24.2]} 24... Rdg8 {[%clk
0:01:03.6]} 25. Rd2 {[%clk 0:00:50.7]} 25... h2 {[%clk 0:00:57.5]} 26. Bg5
{[%clk 0:00:51.8]} 26... Rg1+ {[%clk 0:00:44.1]} 27. Rxg1 {[%clk 0:00:50.1]}
27... hxg1=Q+ {[%clk 0:00:44.3]} 28. Kxg1 {[%clk 0:00:52]} 28... f6 {[%clk
0:00:46]} 29. Kf1 {[%clk 0:00:29.2]} 29... fxg5 {[%clk 0:00:46.7]} 30. hxg5
{[%clk 0:00:31.1]} 30... Rxg5 {[%clk 0:00:47.8]} 31. Rd7 {[%clk 0:00:32.8]}
31... Kb8 {[%clk 0:00:45.6]} 32. b4 {[%clk 0:00:28.4]} 32... a5 {[%clk
0:00:34.1]} 33. a3 {[%clk 0:00:06.7]} 33... axb4 {[%clk 0:00:33.7]} 34. axb4
{[%clk 0:00:08.6]} 34... h4 {[%clk 0:00:34.4]} 35. Rf7 {[%clk 0:00:04.7]} 35...
h3 {[%clk 0:00:30.1]} 36. Rh7 {[%clk 0:00:04.6]} 36... Rg4 {[%clk 0:00:18.8]}
37. f3 {[%clk 0:00:02.8]} 37... Rg3 {[%clk 0:00:17.2]} 38. Kf2 {[%clk
0:00:04.3]} 38... Rg2+ {[%clk 0:00:18.4]} 39. Ke3 {[%clk 0:00:05.9]} 39... e5
{[%clk 0:00:19.1]} 40. Ke4 {[%clk 0:00:05.5]} 40... h2 {[%clk 0:00:19]} 41. Kxe5
{[%clk 0:00:04.2]} 41... Nd3+ {[%clk 0:00:19.6]} 42. Kd4 {[%clk 0:00:04.5]}
42... Nf2 {[%clk 0:00:19.3]} 43. Rh8+ {[%clk 0:00:03.4]} 43... Ka7 {[%clk
0:00:20.1]} 44. Kc5 {[%clk 0:00:02.9]} 44... h1=Q {[%clk 0:00:19.7]} 45. Rxh1
{[%clk 0:00:04.5]} 45... Nxh1 {[%clk 0:00:21.6]} 0-1

[Event "*** Titled Tuesday 3|2 Blitz"]
[Site "Chess.com"]
[Date "2015.08.04"]
[Round "4"]
[White "Beca95"]
[Black "dretch"]
[Result "1-0"]
[WhiteElo "2567"]
[BlackElo "2479"]
[TimeControl "180+2"]
[EndTime "12:22:09 PDT"]
[Termination "Beca95 won by resignation"]

1. d4 {[%clk 0:03:01.9]} 1... d5 {[%clk 0:03:00.7]} 2. c4 {[%clk 0:03:00.4]}
2... c6 {[%clk 0:03:02.1]} 3. Nf3 {[%clk 0:03:01.4]} 3... Nf6 {[%clk 0:03:03.3]}
4. g3 {[%clk 0:03:00.1]} 4... dxc4 {[%clk 0:03:00.8]} 5. Nc3 {[%clk 0:03:00.8]}
5... Nbd7 {[%clk 0:02:59.6]} 6. a4 {[%clk 0:03:00.6]} 6... a5 {[%clk 0:02:56.6]}
7. Bg2 {[%clk 0:03:00.6]} 7... e6 {[%clk 0:02:57.7]} 8. O-O {[%clk 0:03:00.8]}
8... Be7 {[%clk 0:02:58.5]} 9. e4 {[%clk 0:03:01.9]} 9... O-O {[%clk 0:02:55.3]}
10. Qe2 {[%clk 0:03:02.9]} 10... Nb6 {[%clk 0:02:56.8]} 11. Bf4 {[%clk
0:03:00.7]} 11... Ne8 {[%clk 0:02:55.8]} 12. Rad1 {[%clk 0:03:01.1]} 12... Nd6
{[%clk 0:02:52.7]} 13. Ne5 {[%clk 0:03:00.8]} 13... Bd7 {[%clk 0:02:45.2]} 14.
h4 {[%clk 0:02:51.4]} 14... Be8 {[%clk 0:02:45.8]} 15. Bh3 {[%clk 0:02:41]}
15... Kh8 {[%clk 0:02:44.5]} 16. d5 {[%clk 0:02:40.9]} 16... exd5 {[%clk
0:02:44.6]} 17. exd5 {[%clk 0:02:42.8]} 17... c5 {[%clk 0:02:45.7]} 18. Rfe1
{[%clk 0:02:36.2]} 18... Bf6 {[%clk 0:02:45.7]} 19. Qc2 {[%clk 0:02:27.9]} 19...
Ra6 {[%clk 0:02:39.6]} 20. Re2 {[%clk 0:02:27.6]} 20... Bd7 {[%clk 0:02:36.3]}
21. Nxd7 {[%clk 0:02:17.4]} 21... Nxd7 {[%clk 0:02:38.2]} 22. Nb5 {[%clk
0:02:18.3]} 22... Nxb5 {[%clk 0:02:25]} 23. axb5 {[%clk 0:02:20.2]} 23... Rb6
{[%clk 0:02:26.4]} 24. Qxc4 {[%clk 0:02:20.1]} 24... Bd4 {[%clk 0:02:23.8]} 25.
d6 {[%clk 0:02:21.2]} 25... Nf6 {[%clk 0:02:22.6]} 26. Rxd4 {[%clk 0:02:13.5]}
26... cxd4 {[%clk 0:02:22.6]} 27. d7 {[%clk 0:01:38.3]} 27... Re6 {[%clk
0:01:51.9]} 28. Bxe6 {[%clk 0:01:33.9]} 28... fxe6 {[%clk 0:01:52.8]} 29. Qxd4
{[%clk 0:01:32.7]} 29... Nd5 {[%clk 0:01:47.8]} 30. Rxe6 {[%clk 0:01:21.8]}
30... Qxd7 {[%clk 0:01:48.5]} 31. Rd6 {[%clk 0:01:08.3]} 31... Nxf4 {[%clk
0:01:48.9]} 32. Rxd7 {[%clk 0:01:05]} 32... Ne2+ {[%clk 0:01:49.6]} 33. Kg2
{[%clk 0:01:04.3]} 33... Nxd4 {[%clk 0:01:51.5]} 34. Rxd4 {[%clk 0:01:05.3]}
34... Kg8 {[%clk 0:01:45.7]} 35. Rd7 {[%clk 0:01:04.3]} 35... Rc8 {[%clk
0:01:45.6]} 36. Rxb7 {[%clk 0:01:03.7]} 36... Rc2 {[%clk 0:01:46]} 37. Ra7
{[%clk 0:01:05]} 37... Rxb2 {[%clk 0:01:46.5]} 38. Rxa5 {[%clk 0:01:06.2]} 38...
Rb3 {[%clk 0:01:44.3]} 39. Ra8+ {[%clk 0:01:06.9]} 39... Kf7 {[%clk 0:01:45.4]}
40. Rb8 {[%clk 0:01:08.2]} 40... h5 {[%clk 0:01:45.4]} 41. b6 {[%clk 0:01:09.3]}
41... Kg6 {[%clk 0:01:44.6]} 42. Kf1 {[%clk 0:01:09.1]} 42... Rb2 {[%clk
0:01:45.1]} 43. Ke1 {[%clk 0:01:09.5]} 43... Kf7 {[%clk 0:01:41.7]} 44. b7
{[%clk 0:00:59.4]} 44... Kg6 {[%clk 0:01:39.2]} 45. Kd1 {[%clk 0:01:00.5]} 45...
Kh7 {[%clk 0:01:33.4]} 46. Kc1 {[%clk 0:00:59.2]} 46... Rb6 {[%clk 0:01:32.6]}
47. f3 {[%clk 0:01:00.2]} 47... Rb5 {[%clk 0:01:32.3]} 48. g4 {[%clk 0:01:01.4]}
48... Kg6 {[%clk 0:01:19.1]} 49. gxh5+ {[%clk 0:00:55.7]} 49... Kh7 {[%clk
0:01:10.3]} 50. f4 {[%clk 0:00:54.6]} 50... Rb3 {[%clk 0:00:59.5]} 51. f5 {[%clk
0:00:55.1]} 51... Rb6 {[%clk 0:00:56.6]} 52. h6 {[%clk 0:00:53]} 52... gxh6
{[%clk 0:00:56.2]} 53. f6 {[%clk 0:00:54.2]} 53... Rc6+ {[%clk 0:00:34.3]} 54.
Kd2 {[%clk 0:00:52.4]} 54... Rc7 {[%clk 0:00:32.1]} 55. Ke3 {[%clk 0:00:51.6]}
55... Rd7 {[%clk 0:00:26]} 56. Ke4 {[%clk 0:00:51.7]} 56... h5 {[%clk
0:00:23.9]} 57. Ke5 {[%clk 0:00:51.8]} 57... Rc7 {[%clk 0:00:24.3]} 58. Kd6
{[%clk 0:00:52.6]} 58... Rf7 {[%clk 0:00:24.5]} 59. Ke6 {[%clk 0:00:53.5]} 59...
Rc7 {[%clk 0:00:25.5]} 60. Re8 {[%clk 0:00:51.5]} 60... Rc6+ {[%clk 0:00:19.9]}
61. Kd5 {[%clk 0:00:50.1]} 61... Rxf6 {[%clk 0:00:15.7]} 62. b8=Q {[%clk
0:00:49.4]} 1-0

[Event "*** Titled Tuesday 3|2 Blitz"]
[Site "Chess.com"]
[Date "2015.08.04"]
[Round "4"]
[White "yurisolo"]
[Black "Gergo85"]
[Result "1-0"]
[WhiteElo "2404"]
[BlackElo "2319"]
[TimeControl "180+2"]
[EndTime "12:22:22 PDT"]
[Termination "yurisolo won by resignation"]

1. e4 {[%clk 0:03:01.9]} 1... d5 {[%clk 0:02:59.3]} 2. exd5 {[%clk 0:03:02.5]}
2... Qxd5 {[%clk 0:03:00]} 3. Nc3 {[%clk 0:03:04]} 3... Qd6 {[%clk 0:03:01.1]}
4. d4 {[%clk 0:03:05.6]} 4... g6 {[%clk 0:03:01.8]} 5. Nf3 {[%clk 0:03:02.4]}
5... Bg7 {[%clk 0:03:02.5]} 6. Nb5 {[%clk 0:03:03.4]} 6... Qb6 {[%clk 0:03:01]}
7. Na3 {[%clk 0:03:04.4]} 7... c6 {[%clk 0:03:02]} 8. Nc4 {[%clk 0:03:04.9]}
8... Qd8 {[%clk 0:03:02.4]} 9. a4 {[%clk 0:03:04.6]} 9... Nf6 {[%clk 0:03:02.7]}
10. a5 {[%clk 0:03:03.9]} 10... O-O {[%clk 0:03:03.3]} 11. Be2 {[%clk 0:02:59]}
11... Be6 {[%clk 0:02:53.6]} 12. O-O {[%clk 0:02:42.2]} 12... Nbd7 {[%clk
0:02:44.8]} 13. Re1 {[%clk 0:02:35.5]} 13... Bd5 {[%clk 0:02:27.6]} 14. Ne3
{[%clk 0:02:33]} 14... Bxf3 {[%clk 0:02:15.8]} 15. Bxf3 {[%clk 0:02:34.9]} 15...
e5 {[%clk 0:02:16.9]} 16. a6 {[%clk 0:02:31.2]} 16... e4 {[%clk 0:02:04.9]} 17.
axb7 {[%clk 0:02:31.3]} 17... Rb8 {[%clk 0:02:05.4]} 18. Be2 {[%clk 0:02:30.7]}
18... Rxb7 {[%clk 0:02:07]} 19. Nc4 {[%clk 0:02:27.6]} 19... Nb6 {[%clk
0:01:41.8]} 20. Na5 {[%clk 0:02:25.4]} 20... Rc7 {[%clk 0:01:43.1]} 21. Bf4
{[%clk 0:02:26.3]} 21... Rc8 {[%clk 0:01:42.8]} 22. Ba6 {[%clk 0:02:12.7]} 22...
Nh5 {[%clk 0:01:28.3]} 23. Nb7 {[%clk 0:01:51.7]} 23... Qxd4 {[%clk 0:01:19.1]}
24. Bd6 {[%clk 0:01:28.7]} 24... Rfe8 {[%clk 0:01:09.3]} 25. c3 {[%clk
0:01:28.4]} 25... Qxd1 {[%clk 0:01:01.6]} 26. Raxd1 {[%clk 0:01:30.3]} 26... Nf6
{[%clk 0:00:28.2]} 27. Bc5 {[%clk 0:01:28.5]} 27... Bf8 {[%clk 0:00:23.7]} 28.
Nd6 {[%clk 0:01:23.8]} 28... Bxd6 {[%clk 0:00:24.3]} 29. Rxd6 {[%clk 0:01:23.7]}
29... Rc7 {[%clk 0:00:17.4]} 30. Rxf6 {[%clk 0:01:21.2]} 30... Nd7 {[%clk
0:00:18.5]} 31. Bd6 {[%clk 0:01:22]} 31... Nxf6 {[%clk 0:00:15.1]} 32. Bxc7
{[%clk 0:01:23]} 32... Nd5 {[%clk 0:00:16.8]} 33. Bd6 {[%clk 0:01:15.8]} 33...
f5 {[%clk 0:00:17.5]} 34. Bc5 {[%clk 0:01:10.9]} 34... Kf7 {[%clk 0:00:17.9]}
35. g3 {[%clk 0:01:00.2]} 35... Ke6 {[%clk 0:00:16.4]} 36. Bc4 {[%clk
0:01:00.2]} 36... Rb8 {[%clk 0:00:16.6]} 37. b4 {[%clk 0:00:55.7]} 37... Ke5
{[%clk 0:00:16.9]} 38. Bxa7 {[%clk 0:00:56.2]} 38... Ra8 {[%clk 0:00:17.9]} 39.
Bd4+ {[%clk 0:00:56.8]} 39... Kd6 {[%clk 0:00:19.8]} 40. Bxd5 {[%clk 0:00:54]}
40... Kxd5 {[%clk 0:00:20.7]} 41. Re2 {[%clk 0:00:55.1]} 41... Kc4 {[%clk
0:00:21.8]} 42. Kg2 {[%clk 0:00:53.9]} 42... Ra1 {[%clk 0:00:22.7]} 43. f3
{[%clk 0:00:49.5]} 43... exf3+ {[%clk 0:00:19.8]} 44. Kxf3 {[%clk 0:00:51.4]}
44... g5 {[%clk 0:00:20.6]} 45. Re5 {[%clk 0:00:50.2]} 45... h5 {[%clk
0:00:18.6]} 46. Rxf5 {[%clk 0:00:45.4]} 46... Rf1+ {[%clk 0:00:19.5]} 47. Bf2
{[%clk 0:00:45.5]} 47... Kxc3 {[%clk 0:00:20.3]} 48. Kg2 {[%clk 0:00:42.5]}
48... Rd1 {[%clk 0:00:20.3]} 49. Rc5+ {[%clk 0:00:41.5]} 49... Kxb4 {[%clk
0:00:20.9]} 50. Rxc6 {[%clk 0:00:42.6]} 50... Rd5 {[%clk 0:00:19.6]} 51. h3
{[%clk 0:00:34.3]} 51... g4 {[%clk 0:00:18.3]} 52. hxg4 {[%clk 0:00:35]} 52...
hxg4 {[%clk 0:00:20.2]} 53. Rg6 {[%clk 0:00:35.3]} 53... Kc4 {[%clk 0:00:18.7]}
54. Rxg4+ {[%clk 0:00:36]} 54... Kd3 {[%clk 0:00:20.6]} 55. Rd4+ {[%clk
0:00:31.7]} 55... Rxd4 {[%clk 0:00:21.5]} 56. Bxd4 {[%clk 0:00:33.6]} 56... Kxd4
{[%clk 0:00:23.4]} 57. Kf3 {[%clk 0:00:32.6]} 57... Ke5 {[%clk 0:00:25]} 58. Kg4
{[%clk 0:00:33.8]} 58... Kf6 {[%clk 0:00:26.2]} 59. Kh5 {[%clk 0:00:34.9]} 59...
Kf5 {[%clk 0:00:26.9]} 60. g4+ {[%clk 0:00:35.4]} 60... Kf6 {[%clk 0:00:28.8]}
61. Kh6 {[%clk 0:00:36.1]} 61... Kf7 {[%clk 0:00:30.1]} 62. g5 {[%clk
0:00:35.3]} 62... Kf8 {[%clk 0:00:30.7]} 63. Kh7 {[%clk 0:00:36.2]} 1-0

[Event "*** Titled Tuesday 3|2 Blitz"]
[Site "Chess.com"]
[Date "2015.08.04"]
[Round "4"]
[White "Cruel_Yaro"]
[Black "dabee"]
[Result "1-0"]
[WhiteElo "2509"]
[BlackElo "2445"]
[TimeControl "180+2"]
[EndTime "12:22:59 PDT"]
[Termination "Cruel_Yaro won by checkmate"]

1. d4 {[%clk 0:03:01.9]} 1... c5 {[%clk 0:02:59.2]} 2. d5 {[%clk 0:03:02.3]}
2... e5 {[%clk 0:02:54.5]} 3. e4 {[%clk 0:02:57]} 3... d6 {[%clk 0:02:55.5]} 4.
g3 {[%clk 0:02:53.7]} 4... Be7 {[%clk 0:02:56.3]} 5. h4 {[%clk 0:02:46.3]} 5...
Nf6 {[%clk 0:02:53.7]} 6. Nc3 {[%clk 0:02:39.6]} 6... O-O {[%clk 0:02:53.5]} 7.
a4 {[%clk 0:02:26.2]} 7... Nbd7 {[%clk 0:02:46.4]} 8. Bh3 {[%clk 0:02:21.1]}
8... c4 {[%clk 0:02:40.5]} 9. Be3 {[%clk 0:02:19.3]} 9... a6 {[%clk 0:02:36.2]}
10. Nf3 {[%clk 0:01:58.6]} 10... Qa5 {[%clk 0:02:30.9]} 11. Nd2 {[%clk
0:01:55.6]} 11... Qb4 {[%clk 0:02:18.6]} 12. Qb1 {[%clk 0:00:56.8]} 12... Nc5
{[%clk 0:02:11.1]} 13. Bxc8 {[%clk 0:00:56.6]} 13... Rfxc8 {[%clk 0:02:09.4]}
14. O-O {[%clk 0:00:56.5]} 14... Ng4 {[%clk 0:01:52.3]} 15. Bxc5 {[%clk
0:00:56.4]} 15... Qxc5 {[%clk 0:01:52]} 16. a5 {[%clk 0:00:44.8]} 16... Bd8
{[%clk 0:01:44.5]} 17. Qd1 {[%clk 0:00:42.4]} 17... h5 {[%clk 0:01:37]} 18. Ra4
{[%clk 0:00:29.7]} 18... Bxa5 {[%clk 0:01:24.1]} 19. Rxc4 {[%clk 0:00:30.4]}
19... Qa7 {[%clk 0:01:18.8]} 20. Ncb1 {[%clk 0:00:28]} 20... Bxd2 {[%clk
0:01:13.1]} 21. Nxd2 {[%clk 0:00:28.4]} 21... b5 {[%clk 0:01:10.8]} 22. Rxc8+
{[%clk 0:00:25.2]} 22... Rxc8 {[%clk 0:01:10.9]} 23. c3 {[%clk 0:00:23.6]} 23...
a5 {[%clk 0:00:58.8]} 24. Qe2 {[%clk 0:00:15.3]} 24... b4 {[%clk 0:00:57.5]} 25.
cxb4 {[%clk 0:00:16.4]} 25... axb4 {[%clk 0:00:57.7]} 26. Nc4 {[%clk 0:00:17.4]}
26... Qc5 {[%clk 0:00:52.2]} 27. b3 {[%clk 0:00:18.5]} 27... g6 {[%clk
0:00:51.7]} 28. Kg2 {[%clk 0:00:19.7]} 28... Ra8 {[%clk 0:00:51.1]} 29. f3
{[%clk 0:00:20.3]} 29... Nf6 {[%clk 0:00:47.5]} 30. Qf2 {[%clk 0:00:21.3]} 30...
Qc7 {[%clk 0:00:43.8]} 31. Qd2 {[%clk 0:00:18]} 31... Qc5 {[%clk 0:00:39.6]} 32.
Qf2 {[%clk 0:00:14.1]} 32... Qc7 {[%clk 0:00:40.4]} 33. Rc1 {[%clk 0:00:11.2]}
33... Nd7 {[%clk 0:00:39.5]} 34. Qd2 {[%clk 0:00:09.2]} 34... Nc5 {[%clk
0:00:38.2]} 35. Qc2 {[%clk 0:00:08.8]} 35... Qd7 {[%clk 0:00:37]} 36. Nxe5
{[%clk 0:00:09.3]} 36... dxe5 {[%clk 0:00:36.9]} 37. Qxc5 {[%clk 0:00:10.4]}
37... Ra2+ {[%clk 0:00:37.7]} 38. Rc2 {[%clk 0:00:11.7]} 38... Rxc2+ {[%clk
0:00:38.6]} 39. Qxc2 {[%clk 0:00:12.4]} 39... Qb5 {[%clk 0:00:39.8]} 40. Qd2
{[%clk 0:00:13.1]} 40... Kf8 {[%clk 0:00:40]} 41. f4 {[%clk 0:00:11.8]} 41...
exf4 {[%clk 0:00:40]} 42. gxf4 {[%clk 0:00:12.8]} 42... Ke7 {[%clk 0:00:41.3]}
43. Qe3 {[%clk 0:00:08.7]} 43... Kd7 {[%clk 0:00:37]} 44. Qa7+ {[%clk
0:00:08.9]} 44... Ke8 {[%clk 0:00:37.2]} 45. Qe3 {[%clk 0:00:08.1]} 45... Kd7
{[%clk 0:00:37.1]} 46. Kf2 {[%clk 0:00:09.2]} 46... Qa5 {[%clk 0:00:35.4]} 47.
Qd3 {[%clk 0:00:10.4]} 47... Qa2+ {[%clk 0:00:34.7]} 48. Ke3 {[%clk 0:00:11.6]}
48... Qa7+ {[%clk 0:00:33]} 49. Qd4 {[%clk 0:00:12.5]} 49... Qa3 {[%clk
0:00:32.4]} 50. Qc4 {[%clk 0:00:13.8]} 50... Qa7+ {[%clk 0:00:30.2]} 51. Kd3
{[%clk 0:00:15]} 51... Qf2 {[%clk 0:00:28.7]} 52. Qc6+ {[%clk 0:00:14.5]} 52...
Ke7 {[%clk 0:00:29.7]} 53. Qc7+ {[%clk 0:00:14.5]} 53... Kf8 {[%clk 0:00:30.1]}
54. Qd6+ {[%clk 0:00:08.3]} 54... Kg8 {[%clk 0:00:29.2]} 55. Kc4 {[%clk
0:00:06.5]} 55... Qd2 {[%clk 0:00:28.4]} 56. Qb8+ {[%clk 0:00:06.6]} 56... Kh7
{[%clk 0:00:27.1]} 57. Qe5 {[%clk 0:00:08.4]} 57... Kg8 {[%clk 0:00:21.3]} 58.
d6 {[%clk 0:00:08.4]} 58... Kf8 {[%clk 0:00:07.6]} 59. Qh8# {[%clk 0:00:08.9]}
1-0